Workbook

Sheet Table rentabilité optimisé
B2: ETUDE RENTABILITE SOLUTIONS USAGE PRODUCTIF
B3: Pôle multiservice paysans PMP
B5: Dimmensionnement optimisé
B6: Dimmensionnement optimisé
B7: Dimmensionnement réel
B8: Cases à vérifier
B9: Cases à compléter
B10: Cases à laisser vides
B11: Cases calculées
B13: Caractéristiques techniques du Projet
B15: Usage Productif | C15: Selection | D15: Nb applications | E15: Capacité | G15: Puissance (kW) | I15: Prix (FCFA) | J15: Production | L15: Energie consommée (KWh/j) | M15: Energie à produire (kWh/j) | N15: Fonctionnement optimal | Q15: Coefficient déperdition (k)
E16: Quantité | F16: Unité | G16: Nominale | H16: Absorbée | J16: Produit final | K16: Tourteaux | N16: heures par jour pointe | O16: heures par jour moyen | P16: jours à l'année
B17: Moulin à grains, 250 Kg/h | C17: oui | D17: 1 | E17: 250 | F17: kg/h | G17: 4.686 | H17: 4.686 | I17: 1000000 | J17: 1 | K17: 0 | L17: =H17*N17*D17 -> 18.744 | M17: =(H17*N17*D17)/Q17 -> 26.77714286 | N17: 4 | O17: 4 | P17: 300 | Q17: 0.7
B18: Moulin à grains, 125 Kg/h | E18: 300 | F18: kg/h | G18: 2.2 | H18: 2.2 | I18: 700000
B19: Décortiqueuse électrique 150 Kg/h | C19: oui | D19: 1 | E19: 150 | F19: kg/h | G19: 4.4 | H19: 4.4 | I19: 1000000 | J19: 0.9 | K19: 0.1 | L19: =H19*N19*D19 -> 17.6 | M19: =(H19*N19*D19)/Q19 -> 25.14285714 | N19: 4 | O19: 3 | P19: 300 | Q19: 0.7
B20: Décortiqueuse électrique 75 Kg/h | E20: 150 | F20: kg/h | G20: 2.2 | H20: 2.2 | I20: 700000
B21: Vibro-tamiseur 800 Kg/h | C21: oui | D21: 1 | E21: 800 | F21: kg/h | G21: 0.4 | H21: 0.4 | I21: 1500000 | J21: - | K21: - | L21: =H21*N21*D21 -> 2.4 | M21: =(H21*N21*D21)/Q21 -> 3.428571429 | N21: 6 | O21: 5 | P21: 200 | Q21: 0.7
B22: Vibro-tamiseur 400 Kg/h | E22: 400 | F22: kg/h | G22: 0.3 | H22: 0.3 | I22: 900000
B23: Congélateur 360L | C23: non | D23: 1 | E23: 200 | F23: L/j | G23: 0.15 | H23: 0.15 | I23: 400000 | J23: - | K23: - | L23: =H23*N23*D23 -> 3.6 | M23: 6 | N23: 24 | O23: - | P23: 300 | Q23: 0.6
B24: Téléviseur | C24: non | D24: 1 | E24: - | F24: - | G24: 0.15 | H24: 0.15 | I24: 300000 | J24: - | K24: - | L24: 1.8 | M24: 3 | N24: 12 | O24: 8 | P24: 300 | Q24: 0.6
B25: Banc de recharge de smartphone | C25: oui | D25: 1 | E25: 25 | F25: téléphones/h | G25: =0.01*E25 -> 0.25 | H25: =G25 -> 0.25 | I25: 20000 | J25: - | K25: - | L25: 1 | M25: 1.428571429 | N25: 4 | O25: 5 | P25: 300 | Q25: 0.7
B26: Pompe solaire (modèle Lorentz PS2-150 Boost-60) | C26: non | D26: 2 | E26: 1.3 | F26: m3/h | G26: 0.3 | H26: 0.3 | I26: 1000000 | J26: - | K26: - | L26: 3 | M26: 5 | N26: 5 | O26: 1 | P26: 300 | Q26: 0.6
B27: Ordinateur | C27: non | D27: 1 | E27: - | F27: - | G27: 0.1 | H27: 0.1 | I27: 500000 | J27: - | K27: - | L27: =H27*N27*D27 -> 0 | M27: 0 | N27: 0 | O27: 6 | P27: 300 | Q27: 0.7
B28: Photocopieuse | C28: non | D28: 1 | E28: - | F28: - | G28: 0.15 | H28: 0.15 | I28: 500000 | J28: - | K28: - | L28: 0.15 | M28: 0.25 | N28: 1 | O28: 1 | P28: 300 | Q28: 0.6
B29: Combiné bois menuisier | C29: non | D29: 1 | E29: - | F29: - | G29: 1.5 | H29: 1.5 | I29: 2400000 | J29: - | K29: - | L29: 12 | M29: 20 | N29: 8 | O29: 3 | P29: 140 | Q29: 0.6
B30: Thermo-soudeur | C30: non | D30: 1 | E30: - | F30: - | I30: 0 | J30: - | K30: - | L30: 0 | M30: =(H30*N30*D30)/Q30 -> 0 | N30: 8 | O30: 8 | P30: 140 | Q30: 0.6
B31: Tisse sac | C31: oui | D31: 1 | E31: - | F31: - | G31: 0.25 | H31: 0.25 | I31: 150000 | N31: 1 | O31: 1 | P31: 300 | Q31: 0.7
B33: Éclairage | C33: oui | D33: 3 | E33: - | F33: - | G33: 0.011 | H33: 0.011 | I33: 1500 | J33: - | K33: - | L33: 0.33 | M33: 0.4714285714 | N33: 10 | O33: 6 | P33: 300 | Q33: 0.7
B34: Support aluminium | C34: oui | D34: =C135 -> 27 | E34: - | F34: - | I34: 35000
B35: Démarreur/variateur | C35: oui | D35: 1 | E35: - | F35: -
B36: Parafoudre | C36: oui | D36: 1 | E36: - | F36: - | I36: 140000
B37: Câbles et accessoires & installation int. | C37: oui | D37: 1 | E37: - | F37: - | I37: 1000000
B38: Batiment | C38: oui | D38: 1 | E38: - | F38: - | I38: 10000000
B39: Local batteries | C39: oui | D39: 1 | E39: - | F39: - | I39: 1000000
B40: Installation | C40: oui | D40: 1 | E40: - | F40: - | I40: 1000000
B41: Coffret DC
B42: Coffret AC
B43: Ensemble mise à la terre | D43: 1 | I43: 161755
B44: Coffret pour batteries | D44: 1 | I44: =9112*F107 -> 218688
B47: Alimentation Solaire | C47: Puissance (kW) | D47: Prix (FCFA) | E47: Coefficient déperdition | F47: Tension (V) | H47: Batteries | I47: Capacité (Ampères/h) | J47: Prix (FCFA) | K47: Tension (V) | L47: Durée de vie* | M47: * en conditions optimales, annoncées constructeur
B48: Modules PV (375 Wc) Polycristallin | C48: 0.375 | D48: 78148 | E48: 0.6 | F48: 24V | H48: Victron Energy Gel | I48: 220 | J48: 400000 | K48: 12 | L48: 7
B49: BlueSolar SPM-300-24 Monocristallin | C49: 0.3 | D49: 300000 | E49: 0.6 | F49: 24V | H49: GEL HOPPECKE 6 OPzV 370 | I49: 400 | J49: =660*655 -> 432300 | K49: 6 | L49: 10
B50: Tension nécessaire alimentation solaire | C50: =IF(J52<0.5,"12V",IF(AND(J52>=0.5,J52<2),"24V",IF(J52>=2,"48V"))) -> 48V | H50: Batteries OPZS 1220 (Ah) | I50: 1220 | J50: 194400.625 | K50: 2 | L50: 12
H51: Victron Energy Gel 2 | I51: 265 | J51: 580000 | K51: 12 | L51: 7
H52: Tension nécessaire batteries | I52: =IF(J52<0.5,12,IF(AND(J52>=0.5,J52<2),24,IF(J52>=2,48))) -> 48 | J52: =F104*INDEX(C:C,MATCH(F81,B:B,0)) -> 10.125
B54: Onduleur chargeur | C54: kVa | D54: Prix (FCFA) | H54: Regulateur/Onduleur reseau | J54: Prix (FCFA) | K54: Tension (V)
B55: Vitron Energy Phoenix | C55: 2 | D55: 450000 | H55: Onduleur reseau 20 KW | J55: 1870329 | K55: 12V/24V/48V
B56: Convertisseur chargeur victron 8KVA | C56: 8 | D56: 1660376 | H56: Régulateur Victron Smart bluesolar MPPT 150V ; 85A | J56: 316410 | K56: 12V/24V/48V
B58: Irradiation Solaire
B59: Month | C59: Jan | D59: Feb | E59: Mar | F59: Apr | G59: May | H59: Jun | I59: Jul | J59: Aug | K59: Sep | L59: Oct | M59: Nov | N59: Dec | O59: Year
B60: H(15)* | C60: 5.12 | D60: 5.75 | E60: 6.37 | F60: 6.61 | G60: 6.34 | H60: 6.05 | I60: 6.26 | J60: 5.51 | K60: 6.03 | L60: 5.81 | M60: 5.226 | N60: 5.03 | O60: =IF('Table rentabilité optimisé'!G95="x",MAX(C60:N60),IF('Table rentabilité optimisé'!G96="x",MIN(C60:N60),IF('Table rentabilité optimisé'!G97="x",AVERAGE(C60:N60),"erreur"))) -> 5.842166667
B62: Électricité du réseau
B63: Frais variables d'utilisation du réseau | D63: 1ère Tranche | E63: 2ème Tranche | F63: 3ème Tranche | J63: 1ère Tranche | K63: 2ème Tranche | L63: 3ème Tranche | M63: Total
B64: UP-Petite Puissance | C64: Tranche (KWh) | D64: 50 | E64: 500 | F64: ∞ | H64: UP-Petite Puissance | I64: Energie par Tranche | J64: =(F100*30)-SUM(K64:L64) -> 50 | K64: =IF((F100*30)>D64,(F100*30)-D64-L64,0) -> 450 | L64: =IF((F100*30)>E64,(F100*30)-E64,0) -> 702.22 | M64: =SUM(J64:L64) -> 1202.22
C65: Prix (KWh) | D65: 128.85 | E65: 135.68 | F65: 147.68 | I65: Coût (FCFA) | J65: =J64*D65 -> 6442.5 | K65: =K64*E65 -> 61056 | L65: =L64*F65 -> 103703.8496 | M65: =SUM(J65:L65) -> 171202.3496
B66: UP-Moyenne Puissance | C66: Tranche | D66: 100 | E66: 500 | F66: ∞ | H66: UP-Moyenne Puissance | I66: Energie par Tranche | J66: =(F100*30)-SUM(K66:L66) -> 100 | K66: =IF((F100*30)>D66,(F100*30)-D66-L66,0) -> 400 | L66: =IF((F100*30)>E66,(F100*30)-E66,0) -> 702.22 | M66: =SUM(J66:L66) -> 1202.22
C67: Prix (KWh) | D67: 129.81 | E67: 136.53 | F67: 149.24 | I67: Coût (FCFA) | J67: =J66*D67 -> 12981 | K67: =K66*E67 -> 54612 | L67: =L66*F67 -> 104799.3128 | M67: =SUM(J67:L67) -> 172392.3128
B69: Frais fixes de raccordement | C69: Fixe/Distance | D69: Prix TTC | E69: Étude raccordement
B70: Réseau HTA | C70: Kg câble | D70: 10.000 à 100.000 | E70: 550000
B71: Réseau HTA - Autres Frais | C71: Fixe | D71: 2.000.000 à 7.000.000 | E71: 550000
B72: Transformateur HT/MT - BT | C72: Fixe | D72: 4800000 | E72: 179000
B73: Extension BT* | C73: Distance | D73: 8260 | E73: 179000
B74: Dépend également de la distance de transport des équipements et nombre et type de poteaux non mesurable sauf par Sénélec (approximation)
B77: Choix de dimensionnement du projet
B79: Commandes annuelles totales de mil | G79: Tonnes
B81: Choix de l'alimentation solaire | F81: Modules PV (375 Wc) Polycristallin
B82: Choix du système de stokage | F82: Batteries OPZS 1220 (Ah)
B83: Choix de l'onduleur reseau | F83: Onduleur reseau 20 KW
B84: Choix de l'onduleur chargeur | F84: Convertisseur chargeur victron 8KVA
B85: Choix de la decortiqueuse | F85: Décortiqueuse électrique 150 Kg/h
B86: Choix du moulin | F86: Moulin à grains, 250 Kg/h
B87: Choix du vibro tamisseur | F87: Vibro-tamiseur 800 Kg/h
B88: Equivalent Réseau | F88: =IF(M65<M67,B64,B66) -> UP-Petite Puissance
B89: Raccordement nécessaire (MT, BT) et distance | F89: MT | G89: 600
B90: Montant Frais HTA et KG câble | F90: 4462549 | G90: 33
B92: Autonomie nécessaires au projet (jours) | F92: 0.9
B93: Profondeur décharge batteries | F93: 0.7
B95: Choix du cas pour dimensionnement solaire | F95: best case
F96: worst case
F97: average | G97: x
B99: Puissance Equipements | F99: =(G17+G19+G21+G23+G25+G33)*1.2 -> 11.8764 | G99: KW
B100: Energie journalière consommée (KWh) | F100: =SUMIF(C17:C33,"oui",L17:L33) -> 40.074 | G100: KWh
B101: Puissance crête projet (KW) | F101: =SUMIF(C17:C33,"oui",M17:M33)/O60 -> 9.799202025
B102: Capacité totale système stockage (Ampères/heure) | F102: =SUMIF(C17:C33,"oui",L17:L33)*1000*(F92)/(F93*I52) -> 1073.410714
B104: Nb de panneaux solaires | F104: =ROUNDUP(F101/INDEX(C:C,MATCH(F81,B:B,0)),0) -> 27 | G104: unités
B105: Nb de batteries en série | F105: =ROUNDUP(I52/INDEX(K:K,MATCH(F82,H:H,0)),0) -> 24 | G105: unités
B106: Nb de batteries en dérivation | F106: =ROUNDUP(F102/INDEX(I:I,MATCH(F82,H:H,0)),0) -> 1 | G106: unités
B107: Nb de batteries total | F107: =F105*F106 -> 24 | G107: unités
B108: Durée de vie attendue de la batterie | F108: =INDEX(L:L,MATCH(F82,H:H,0))*(130%-F93) -> 7.2 | G108: ans
B109: Convertisseur chargeur victron 8KVA | F109: =ROUNDUP(F99/INDEX(C:C,MATCH(F84,B:B,0)),0) -> 2 | G109: unités
B110: Nbre regulateur | F110: =IF(OR(C50=24,C50=12),1,2) -> 2 | G110: unités
B111: Nb régulateurs | G111: unités
B113: Employés nécessaires pour fonctionnement | F113: 4 | G113: personnes
B115: Calcul de charges variables et fixes
B117: CHARGES VARIABLES D'EXPLOITATION
B118: Désignation | C118: Quantité | E118: Prix unitaire | F118: Montant total/an | H118: évolution annuelle charges d'exploitation | K118: 0.03
B119: Achat mil tamisé paysan | C119: =F79*1000 -> 0 | D119: Kilos | E119: 180 | F119: =E119*C119 -> 0
B120: Cout de mise en sac | C120: =C119 -> 0 | D120: Kilos | E120: 5 | F120: =E120*C120 -> 0 | H120: Avantage coût électricité PV vs. Réseau | J120: Sur 1 an | K120: =((MIN(M67,M65)*12)+IF(F89="MT",(G89*D73)+D72+E70+F90,(G89*D73)))-(SUM(F135:F144,F149)+SUM(G135:G144,G149)) -> 2700336.095
B121: Cout de tamisage manuel | C121: 0 | D121: Kilos | E121: 2.5 | F121: =E121*C121 -> 0 | J121: Sur 5 ans | K121: =((MIN(M67,M65)*12*5)+IF(F89="MT",(G89*D73)+D72+E70+F90,(G89*D73)))-(SUM(F135:F144,F149)+(SUM(G135:G144,G149)*5)) -> 7152936.476
B122: Paiement opérateurs | C122: =SUM(C157:C162) -> 1235000 | D122: Kilos | E122: 3 | F122: =E122*C122 -> 3705000 | J122: Sur 10 ans | K122: =((MIN(M67,M65)*12*10)+IF(F89="MT",(G89*D73)+D72+E70+F90,(G89*D73)))-(SUM(F135:F144,F149)+(SUM(G135:G144,G149)*10)) -> 12718686.95
B123: Entretien/maintenance | C123: 6 | E123: 125000 | F123: =E123*C123 -> 750000
B124: Salaires gestion plateforme | C124: 1 | D124: =G113 -> personnes | E124: 50000 | F124: =E124*C124*12 -> 600000
B125: TOTAL (F CFA) | F125: =SUM(F119:F124) -> 5055000
B127: INVESTISSEMENTS
B128: Désignation | C128: Quantité | D128: Prix unitaire TTC | E128: Durée de vie (an) | F128: Montant Total TTC | G128: Amortissement annuel
B129: =B17 -> Moulin à grains, 250 Kg/h | C129: =IF($B$5=INDEX($B$6:$B$7,1,1),D17,'investissement réel'!B4) -> 1 | D129: =IF($B$5=INDEX($B$6:$B$7,1,1),INDEX(I:I,MATCH(F86,B:B,0)),'investissement réel'!C4) -> 1000000 | E129: 15 | F129: =C129*D129 -> 1000000 | G129: =IFERROR(F129/E129,0) -> 66666.66667
B130: =B23 -> Congélateur 360L | C130: =IF($B$5=INDEX($B$6:$B$7,1,1),D23,'investissement réel'!B5) -> 1 | D130: =IF($B$5=INDEX($B$6:$B$7,1,1),I23,'investissement réel'!C5) -> 400000 | E130: 7 | F130: =C130*D130 -> 400000 | G130: =IFERROR(F130/E130,0) -> 57142.85714
B131: =B25 -> Banc de recharge de smartphone | C131: =IF($B$5=INDEX($B$6:$B$7,1,1),D25,'investissement réel'!B6) -> 1 | D131: =IF($B$5=INDEX($B$6:$B$7,1,1),I25,'investissement réel'!C6) -> 20000 | E131: 10 | F131: 20000 | G131: 2000
B132: =B19 -> Décortiqueuse électrique 150 Kg/h | C132: =IF($B$5=INDEX($B$6:$B$7,1,1),D19,'investissement réel'!B7) -> 1 | D132: =IF($B$5=INDEX($B$6:$B$7,1,1),INDEX(I:I,MATCH(F85,B:B,0)),'investissement réel'!C7) -> 1000000 | E132: 15 | F132: 1000000 | G132: 66666.66667
B133: Vibro-tamiseur | C133: =IF($B$5=INDEX($B$6:$B$7,1,1),D21,'investissement réel'!B8) -> 1 | D133: =IF($B$5=INDEX($B$6:$B$7,1,1),INDEX(I:I,MATCH(F87,B:B,0)),'investissement réel'!C8) -> 1500000 | E133: 15 | F133: 1500000 | G133: 100000
B134: Éclairage | C134: =IF($B$5=INDEX($B$6:$B$7,1,1),D33,'investissement réel'!B9) -> 3 | D134: =IF($B$5=INDEX($B$6:$B$7,1,1),I33,'investissement réel'!C9) -> 1500 | E134: 2 | F134: 4500 | G134: 2250
B135: Modules PV 375 W | C135: =IF($B$5=INDEX($B$6:$B$7,1,1),F104,'investissement réel'!B10) -> 27 | D135: =IF($B$5=INDEX($B$6:$B$7,1,1),INDEX(D:D,MATCH(F81,B:B,0)),'investissement réel'!C10) -> 78148 | E135: 20 | F135: 2109996 | G135: 105499.8
B136: Batteries OPZS 1220 (Ah) | C136: =IF($B$5=INDEX($B$6:$B$7,1,1),F107,'investissement réel'!B12) -> 24 | D136: =IF($B$5=INDEX($B$6:$B$7,1,1),INDEX(J:J,MATCH(F82,H:H,0)),'investissement réel'!C12) -> 194400.625 | E136: 10 | F136: 4665615 | G136: 466561.5
B137: Onduleur reseau 20 KW | C137: =IF($B$5=INDEX($B$6:$B$7,1,1),0,'investissement réel'!B11) -> 0 | D137: =IF($B$5=INDEX($B$6:$B$7,1,1),0,'investissement réel'!C11) -> 0 | E137: 7 | F137: 0 | G137: 0
B138: Support aluminium | C138: =IF($B$5=INDEX($B$6:$B$7,1,1),D34,'investissement réel'!B22) -> 27 | D138: =IF($B$5=INDEX($B$6:$B$7,1,1),I34,'investissement réel'!C22) -> 35000 | E138: 10 | F138: 945000 | G138: 94500
B139: Convertisseur chargeur victron 8KVA | C139: =IF($B$5=INDEX($B$6:$B$7,1,1),F109,'investissement réel'!B13) -> 2 | D139: =IF($B$5=INDEX($B$6:$B$7,1,1),INDEX(D:D,MATCH(F84,B:B,0)),'investissement réel'!C13) -> 1660376 | E139: 15 | F139: 3320752 | G139: 221383.4667
B140: Coffret DC | C140: =IF($B$5=INDEX($B$6:$B$7,1,1),D41,'investissement réel'!B14) -> 0 | D140: =IF($B$5=INDEX($B$6:$B$7,1,1),I41,'investissement réel'!C14) -> 0 | E140: 15 | F140: 0 | G140: 0
B141: Coffret AC | C141: =IF($B$5=INDEX($B$6:$B$7,1,1),D42,'investissement réel'!B15) -> 0 | D141: =IF($B$5=INDEX($B$6:$B$7,1,1),I42,'investissement réel'!C15) -> 0 | E141: 20 | F141: 0 | G141: 0
B142: Démarreur/variateur | C142: =IF($B$5=INDEX($B$6:$B$7,1,1),D35,'investissement réel'!B23) -> 1 | D142: =IF($B$5=INDEX($B$6:$B$7,1,1),I35,'investissement réel'!C23) -> 0 | E142: 10 | F142: 0 | G142: 0
B143: Parafoudre | C143: =IF($B$5=INDEX($B$6:$B$7,1,1),D36,'investissement réel'!B24) -> 1 | D143: =IF($B$5=INDEX($B$6:$B$7,1,1),I36,'investissement réel'!C24) -> 140000 | E143: 7 | F143: 140000 | G143: 20000
B144: Câbles et accessoires & installation int. | C144: =IF($B$5=INDEX($B$6:$B$7,1,1),D37,'investissement réel'!B16) -> 1 | D144: =IF($B$5=INDEX($B$6:$B$7,1,1),I37,'investissement réel'!C16) -> 1000000 | E144: 30 | F144: 1000000 | G144: 33333.33333
B145: Ensemble mise à la terre | C145: =IF($B$5=INDEX($B$6:$B$7,1,1),D43,'investissement réel'!B17) -> 1 | D145: =IF($B$5=INDEX($B$6:$B$7,1,1),I43,'investissement réel'!C17) -> 161755 | E145: 30 | F145: 161755 | G145: 5391.833333
B146: Coffret pour batteries | C146: =IF($B$5=INDEX($B$6:$B$7,1,1),D43,'investissement réel'!B18) -> 1 | D146: =IF($B$5=INDEX($B$6:$B$7,1,1),I44,'investissement réel'!C18) -> 218688 | E146: 30 | F146: 218688 | G146: 7289.6
B147: Batiment | C147: =IF($B$5=INDEX($B$6:$B$7,1,1),D38,'investissement réel'!B19) -> 1 | D147: =IF($B$5=INDEX($B$6:$B$7,1,1),I38,'investissement réel'!C19) -> 10000000 | F147: =C147*D147 -> 10000000 | G147: 0
B148: Local batteries | C148: =IF($B$5=INDEX($B$6:$B$7,1,1),D39,'investissement réel'!B20) -> 1 | D148: =IF($B$5=INDEX($B$6:$B$7,1,1),I39,'investissement réel'!C20) -> 1000000 | E148: 15 | F148: 1000000 | G148: 66666.66667
B149: Installation | C149: =IF($B$5=INDEX($B$6:$B$7,1,1),D40,'investissement réel'!B21) -> 1 | D149: =IF($B$5=INDEX($B$6:$B$7,1,1),I40,'investissement réel'!C21) -> 1000000 | F149: =C149*D149 -> 1000000 | G149: 0
B150: TOTAL (F CFA) | F150: =SUM(F129:F149) -> 28486306 | G150: =SUM(G129:G149) -> 1315352.39
B152: Calcul des recettes d'exploitation
B154: RECETTES D'EXPLOITATION
B155: Désignation | C155: Modèle 1 | F155: Modèle 2 | I155: Choix modèle | J155: Recettes annuelles | L155: évolution annuelle recettes d'exploitation | O155: 0.03
C156: Quantité | D156: Unité | E156: Prix unitaire | F156: Quantité | G156: Unité | H156: Prix unitaire
B157: Service tamisage (inclus prix rachat) | C157: =E21*O21*P21 -> 800000 | D157: Kg | E157: 10 | I157: 1 | J157: =IF(I157=1,C157*E157,IF(I157=2,F157*H157,0)) -> 8000000
B158: Vente de mil tamisé | C158: 0 | D158: Kg | E158: 230 | I158: 1 | J158: =IF(I158=1,C158*E158,IF(I158=2,F158*H158,0)) -> 0
B159: Vente de mil tamisé décortiqué | C159: 0 | D159: Kg | E159: 300 | I159: 1 | J159: =IF(I159=1,C159*E159,IF(I159=2,F159*H159,0)) -> 0
B160: Vente de farine de mil | C160: 0 | D160: Kg | E160: 500 | I160: 1 | J160: =IF(I160=1,C160*E160,IF(I160=2,F160*H160,0)) -> 0
B161: Service décorticage | C161: =E19*O19*P19 -> 135000 | D161: Kg | E161: 15 | I161: 1 | J161: =IF(I161=1,C161*E161,IF(I161=2,F161*H161,0)) -> 2025000
B162: Service mouture | C162: =E17*O17*P17 -> 300000 | D162: Kg | E162: 15 | I162: 1 | J162: 4500000
B163: TOTAL (F CFA) | J163: =SUM(J157:J162) -> 14525000
B165: Ressources et Financement des investissements
B167: BFR (Besoin en fonds de roulement)
B168: Type de tiers | C168: Client/fournisseur | D168: Délais de paiement / stocks (jours) | E168: Part des achats/ventes
B169: Fournisseurs matières | C169: founisseur | D169: 0 | E169: 1
B170: Acheteurs services | C170: client | D170: 0 | E170: 0.5
B171: Stocks de consommable | D171: 30 | E171: 0
B172: Stocks de produits finis | D172: 30 | E172: 0
B174: Créances clients | C174: 0
B175: Crédit fournisseurs | C175: =(D170*J163*E170/365)*-1 -> 0
B176: Impact Stocks consommable | C176: =F119*D171/365 -> 0
B177: Impact Stocks produits finis | C177: =(J158*D172/365) -> 0
B178: BFR | C178: =SUM(C174:C177) -> 0 | D178: F CFA
B181: SCHÉMA DE FINANCEMENT | F181: ECHEANCIER DE REMBOURSEMENT
B182: Désignation | C182: Part | D182: Montant total TTC | F182: Année | G182: Capital | H182: Intérêts | I182: Reste | J182: Annuité
B183: Investissements | D183: 30080000 | F183: =IF(D190>10,"nb an insuffisant",IF(D190>=1,1,"-")) -> 1 | G183: =SUMIFS('Remboursement Mensualités'!C$14:C$133,'Remboursement Mensualités'!$F$14:$F$133,'Table rentabilité optimisé'!$F183) -> 2174431.79 | H183: =SUMIFS('Remboursement Mensualités'!D$14:D$133,'Remboursement Mensualités'!$F$14:$F$133,'Table rentabilité optimisé'!$F183) -> 3246324.361 | I183: =SUMIFS('Remboursement Mensualités'!E$14:E$133,'Remboursement Mensualités'!$F$14:$F$133,'Table rentabilité optimisé'!$F183) -> 274935886.9 | J183: =SUMIFS('Remboursement Mensualités'!B$14:B$133,'Remboursement Mensualités'!$F$14:$F$133,'Table rentabilité optimisé'!$F183) -> 5420756.15
B184: Besoin en fonds de roulement | D184: =C178 -> 0 | F184: =IF(D190>10,"nb an insuffisant",IF(D190>=2,2,"-")) -> 2 | G184: =SUMIFS('Remboursement Mensualités'!C$14:C$133,'Remboursement Mensualités'!$F$14:$F$133,'Table rentabilité optimisé'!$F184) -> 2500596.558 | H184: =SUMIFS('Remboursement Mensualités'!D$14:D$133,'Remboursement Mensualités'!$F$14:$F$133,'Table rentabilité optimisé'!$F184) -> 2920159.592 | I184: =SUMIFS('Remboursement Mensualités'!E$14:E$133,'Remboursement Mensualités'!$F$14:$F$133,'Table rentabilité optimisé'!$F184) -> 246767888.4 | J184: =SUMIFS('Remboursement Mensualités'!B$14:B$133,'Remboursement Mensualités'!$F$14:$F$133,'Table rentabilité optimisé'!$F184) -> 5420756.15
B185: COÛT TOTAL (F CFA) | D185: =SUM(D183:D184) -> 30080000 | F185: =IF(D190>10,"nb an insuffisant",IF(D190>=3,3,"-")) -> 3 | G185: =SUMIFS('Remboursement Mensualités'!C$14:C$133,'Remboursement Mensualités'!$F$14:$F$133,'Table rentabilité optimisé'!$F185) -> 2875686.042 | H185: =SUMIFS('Remboursement Mensualités'!D$14:D$133,'Remboursement Mensualités'!$F$14:$F$133,'Table rentabilité optimisé'!$F185) -> 2545070.108 | I185: =SUMIFS('Remboursement Mensualités'!E$14:E$133,'Remboursement Mensualités'!$F$14:$F$133,'Table rentabilité optimisé'!$F185) -> 214374690.2 | J185: =SUMIFS('Remboursement Mensualités'!B$14:B$133,'Remboursement Mensualités'!$F$14:$F$133,'Table rentabilité optimisé'!$F185) -> 5420756.15
B186: Apport personnel | C186: 0.2 | D186: =C186*D185 -> 6016000 | F186: =IF(D190>10,"nb an insuffisant",IF(D190>=4,4,"-")) -> 4 | G186: =SUMIFS('Remboursement Mensualités'!C$14:C$133,'Remboursement Mensualités'!$F$14:$F$133,'Table rentabilité optimisé'!$F186) -> 3307038.949 | H186: =SUMIFS('Remboursement Mensualités'!D$14:D$133,'Remboursement Mensualités'!$F$14:$F$133,'Table rentabilité optimisé'!$F186) -> 2113717.202 | I186: =SUMIFS('Remboursement Mensualités'!E$14:E$133,'Remboursement Mensualités'!$F$14:$F$133,'Table rentabilité optimisé'!$F186) -> 177122512.2 | J186: =SUMIFS('Remboursement Mensualités'!B$14:B$133,'Remboursement Mensualités'!$F$14:$F$133,'Table rentabilité optimisé'!$F186) -> 5420756.15
B187: Subvention | C187: 0 | D187: =C187*D185 -> 0 | F187: =IF(D190>10,"nb an insuffisant",IF(D190>=5,5,"-")) -> 5 | G187: =SUMIFS('Remboursement Mensualités'!C$14:C$133,'Remboursement Mensualités'!$F$14:$F$133,'Table rentabilité optimisé'!$F187) -> 3803094.791 | H187: =SUMIFS('Remboursement Mensualités'!D$14:D$133,'Remboursement Mensualités'!$F$14:$F$133,'Table rentabilité optimisé'!$F187) -> 1617661.36 | I187: =SUMIFS('Remboursement Mensualités'!E$14:E$133,'Remboursement Mensualités'!$F$14:$F$133,'Table rentabilité optimisé'!$F187) -> 134282507.6 | J187: =SUMIFS('Remboursement Mensualités'!B$14:B$133,'Remboursement Mensualités'!$F$14:$F$133,'Table rentabilité optimisé'!$F187) -> 5420756.15
B188: Emprunt | C188: =100%-C187-C186 -> 0.8 | D188: =D185*C188 -> 24064000 | F188: =IF(D190>10,"nb an insuffisant",IF(D190>=6,6,"-")) -> 6 | G188: =SUMIFS('Remboursement Mensualités'!C$14:C$133,'Remboursement Mensualités'!$F$14:$F$133,'Table rentabilité optimisé'!$F188) -> 4373559.009 | H188: =SUMIFS('Remboursement Mensualités'!D$14:D$133,'Remboursement Mensualités'!$F$14:$F$133,'Table rentabilité optimisé'!$F188) -> 1047197.141 | I188: =SUMIFS('Remboursement Mensualités'!E$14:E$133,'Remboursement Mensualités'!$F$14:$F$133,'Table rentabilité optimisé'!$F188) -> 85016502.25 | J188: =SUMIFS('Remboursement Mensualités'!B$14:B$133,'Remboursement Mensualités'!$F$14:$F$133,'Table rentabilité optimisé'!$F188) -> 5420756.15
B189: Taux de l'emprunt | D189: 0.15 | F189: =IF(D190>10,"nb an insuffisant",IF(D190>=7,7,"-")) -> 7 | G189: =SUMIFS('Remboursement Mensualités'!C$14:C$133,'Remboursement Mensualités'!$F$14:$F$133,'Table rentabilité optimisé'!$F189) -> 5029592.861 | H189: =SUMIFS('Remboursement Mensualités'!D$14:D$133,'Remboursement Mensualités'!$F$14:$F$133,'Table rentabilité optimisé'!$F189) -> 391163.2897 | I189: =SUMIFS('Remboursement Mensualités'!E$14:E$133,'Remboursement Mensualités'!$F$14:$F$133,'Table rentabilité optimisé'!$F189) -> 28360596.1 | J189: =SUMIFS('Remboursement Mensualités'!B$14:B$133,'Remboursement Mensualités'!$F$14:$F$133,'Table rentabilité optimisé'!$F189) -> 5420756.15
B190: Remboursement de l'emprunt (années) | D190: 7 | F190: =IF(D190>10,"nb an insuffisant",IF(D190>=8,8,"-")) -> - | G190: =SUMIFS('Remboursement Mensualités'!C$14:C$133,'Remboursement Mensualités'!$F$14:$F$133,'Table rentabilité optimisé'!$F190) -> 0 | H190: =SUMIFS('Remboursement Mensualités'!D$14:D$133,'Remboursement Mensualités'!$F$14:$F$133,'Table rentabilité optimisé'!$F190) -> 0 | I190: =SUMIFS('Remboursement Mensualités'!E$14:E$133,'Remboursement Mensualités'!$F$14:$F$133,'Table rentabilité optimisé'!$F190) -> 0 | J190: =SUMIFS('Remboursement Mensualités'!B$14:B$133,'Remboursement Mensualités'!$F$14:$F$133,'Table rentabilité optimisé'!$F190) -> 0
F191: =IF(D190>10,"nb an insuffisant",IF(D190>=9,9,"-")) -> - | G191: =SUMIFS('Remboursement Mensualités'!C$14:C$133,'Remboursement Mensualités'!$F$14:$F$133,'Table rentabilité optimisé'!$F191) -> 0 | H191: =SUMIFS('Remboursement Mensualités'!D$14:D$133,'Remboursement Mensualités'!$F$14:$F$133,'Table rentabilité optimisé'!$F191) -> 0 | I191: =SUMIFS('Remboursement Mensualités'!E$14:E$133,'Remboursement Mensualités'!$F$14:$F$133,'Table rentabilité optimisé'!$F191) -> 0 | J191: =SUMIFS('Remboursement Mensualités'!B$14:B$133,'Remboursement Mensualités'!$F$14:$F$133,'Table rentabilité optimisé'!$F191) -> 0
F192: =IF(D190>10,"nb an insuffisant",IF(D190>=10,"Année 10","-")) -> - | G192: =SUMIFS('Remboursement Mensualités'!C$14:C$133,'Remboursement Mensualités'!$F$14:$F$133,'Table rentabilité optimisé'!$F192) -> 0 | H192: =SUMIFS('Remboursement Mensualités'!D$14:D$133,'Remboursement Mensualités'!$F$14:$F$133,'Table rentabilité optimisé'!$F192) -> 0 | I192: =SUMIFS('Remboursement Mensualités'!E$14:E$133,'Remboursement Mensualités'!$F$14:$F$133,'Table rentabilité optimisé'!$F192) -> 0 | J192: =SUMIFS('Remboursement Mensualités'!B$14:B$133,'Remboursement Mensualités'!$F$14:$F$133,'Table rentabilité optimisé'!$F192) -> 0
F193: TOTAL | G193: =SUM(G183:G192) -> 24064000 | H193: =SUM(H183:H192) -> 13881293.05 | I193: =SUM(I183:I192) -> 1160860584 | J193: =SUM(J183:J192) -> 37945293.05
B196: Ressources et Financement des investissements
B198: RESULTAT BRUT D'EXPLOITATION (EBE)
B199: Désignation / Durée (années) | C199: 0 | D199: 1 | E199: 2 | F199: 3 | G199: 4 | H199: 5 | I199: 6 | J199: 7 | K199: 8 | L199: 9 | M199: Total
B200: Recettes | C200: =D188+D186 -> 30080000 | D200: =J163 -> 14525000 | E200: =D200+($O$155*D200) -> 14960750 | F200: =E200+($O$155*E200) -> 15409572.5 | G200: 15871859.68 | H200: 16348015.47 | I200: 16838455.93 | J200: 17343609.61 | K200: 17863917.9 | L200: 18399835.43 | M200: =SUM(C200:L200) -> 177641016.5
B201: Dépenses | C201: =D183 -> 30080000 | D201: =F125 -> 5055000 | E201: =D201+($K$118*D201) -> 5206650 | F201: =E201+($K$118*E201) -> 5362849.5 | G201: =F201+($K$118*F201) -> 5523734.985 | H201: =G201+($K$118*G201) -> 5689447.035 | I201: 5860130.446 | J201: 6035934.359 | K201: 6217012.39 | L201: 6403522.761 | M201: 81434281.48
B202: Amortissements | C202: 0 | D202: =G150 -> 1315352.39 | E202: 400000 | F202: 400000 | G202: 400000 | H202: 400000 | I202: 400000 | J202: 400000 | K202: 400000 | L202: 400000 | M202: 4515352.39
B203: Remboursement emprunt | C203: 0 | D203: =IFERROR(INDEX($J$183:$J$192,MATCH(D199,$F$183:$F$192,0)),0) -> 5420756.15 | E203: =IFERROR(INDEX($J$183:$J$192,MATCH(E199,$F$183:$F$192,0)),0) -> 5420756.15 | F203: 5420756.15 | G203: 5420756.15 | H203: 5420756.15 | I203: 5420756.15 | J203: 5420756.15 | K203: 0 | L203: 0 | M203: 37945293.05
B204: Bénéfice avant impôts | C204: 0 | D204: =D200-SUM(D201:D203) -> 2733891.459 | E204: =E200-SUM(E201:E203) -> 3933343.85 | F204: 4225966.85 | G204: 4527368.54 | H204: 4837812.28 | I204: 5157569.333 | J204: 5486919.098 | K204: 11246905.51 | L204: 11596312.67 | M204: 53746089.59
B205: Impôts sur le bénéfice | C205: 0 | D205: =IF(D204<0,0,0.3*D204) -> 820167.4377 | E205: =IF(E204<0,0,0.3*E204) -> 1180003.155 | F205: 1267790.055 | G205: 1358210.562 | H205: 1451343.684 | I205: 1547270.8 | J205: 1646075.729 | K205: 3374071.652 | L205: 3478893.801 | M205: 16123826.88
B206: Bénéfice après impôts | C206: 0 | D206: =D204-D205 -> 1913724.021 | E206: =E204-E205 -> 2753340.695 | F206: 2958176.795 | G206: 3169157.978 | H206: 3386468.596 | I206: 3610298.533 | J206: 3840843.368 | K206: 7872833.854 | L206: 8117418.87 | M206: 37622262.71
B207: Trésorerie | C207: =C200-C201 -> 0 | D207: =C207+D206 -> 1913724.021 | E207: 4667064.716 | F207: =E207+F206 -> 7625241.511 | G207: 10794399.49 | H207: =G207+H206 -> 14180868.08 | I207: 17791166.62 | J207: 21632009.99 | K207: 29504843.84 | L207: 37622262.71
B208: Cash Flows | C208: 0 | D208: =D206+D203-($H$193/$D$190) -> 5351438.307 | E208: =E206+E203-($H$193/$D$190) -> 6191054.98 | F208: 6395891.08 | G208: 6606872.263 | H208: 6824182.882 | I208: 7048012.819 | J208: 7278557.654 | K208: 5889791.989 | L208: 6134377.005
B209: Cash Flows cumulés | C209: =-C201 -> -30080000 | D209: =C209+D208 -> -24728561.69 | E209: =D209+E208 -> -18537506.71 | F209: =E209+F208 -> -12141615.63 | G209: -5534743.369 | H209: =G209+H208 -> 1289439.513 | I209: 8337452.332 | J209: 15616009.99 | K209: 21505801.98 | L209: 27640178.98
B212: Indicateurs économiques
B214: VAN | C214: =NPV(F214,IF(D199<=H214,D208,0),IF(E199<=H214,E208,0),IF(F199<=H214,F208,0),IF(G199<=H214,G208,0),IF(H199<=H214,H208,0),IF(I199<=H214,I208,0),IF(J199<=H214,J208,0),IF(K199<=H214,K208,0),IF(L199<=H214,L208,0))-D183 -> 15312292.37 | D214: FCFA | E214: Taux d'actualisation | F214: 0.05 | G214: Durée VAN (ans) | H214: 9 | N214: =-D183+IF(H214>=D199,(D206+D203-H193/D190)*((1+F214)^-1),0)+IF(H214>=E199,(E206+E203-H193/D190)*((1+F214)^-2),0)+IF(H214>=F199,(F206+F203-H193/D190)*((1+F214)^-3),0)+IF(H214>=G199,(G206+G203-H193/D190)*((1+F214)^-4),0)+IF(H214>=H199,(H206+H203-H193/D190)*((1+F214)^-5),0)+IF(H214>=I199,(I206+I203-H193/D190)*((1+F214)^-6),0)+IF(H214>=J199,(J206+J203-H193/D190)*((1+F214)^-7),0)+IF(H214>=K199,(K206+K203-H193/D190)*((1+F214)^-8),0)+IF(H214>=L199,(L206+L203-H193/D190)*((1+F214)^-9),0) -> 15312292.37 | O214: calcul VAN
B215: TRI | C215: =IRR(N215:W215,10.8%) -> 0.1507514696 | N215: =-D183 -> -30080000 | O215: =IF(D199<=H214,D208,0) -> 5351438.307 | P215: =IF(E199<=H214,E208,0) -> 6191054.98 | Q215: =IF(F199<=H214,F208,0) -> 6395891.08 | R215: =IF(G199<=H214,G208,0) -> 6606872.263 | S215: =IF(H199<=H214,H208,0) -> 6824182.882 | T215: =IF(I199<=H214,I208,0) -> 7048012.819 | U215: =IF(J199<=H214,J208,0) -> 7278557.654 | V215: =IF(K199<=H214,K208,0) -> 5889791.989 | W215: =IF(L199<=H214,L208,0) -> 6134377.005
B216: IPI | C216: =SUM(O215:W215)/D183 -> 1.918888929 | D216: ="Pour 1000 CFA investis, on récupère "&ROUND(N216,0)&" CFA" -> Pour 1000 CFA investis, on récupère 919 CFA | N216: =(C216-1)*1000 -> 918.8889289
B217: DCRI | C217: =N217+(-P217/(O217-P217)) -> 4.811048512 | D217: ="Le délai de récupération est de "&ROUNDDOWN(C217,0)&" ans et "&ROUNDDOWN((C217-ROUNDDOWN(C217,0))*12,0)&" mois" -> Le délai de récupération est de 4 ans et 9 mois | N217: =IF(AND(L209<0,L199<=H214),L199,IF(AND(K209<0,K199<=H214),K199,IF(AND(J209<0,J199<=H214),J199,IF(AND(I209<0,I199<=H214),I199,IF(AND(H209<0,H199<=H214),H199,IF(AND(G209<0,G199<=H214),G199,IF(AND(F209<0,F199<=H214),F199,IF(AND(E209<0,E199<=H214),E199,IF(AND(D209<0,D199<=H214),D199,IF(AND(C209<0,C199<=H214),C199)))))))))) -> 4 | O217: =INDEX(C209:L209,MATCH(INDEX(C199:L199,MATCH(P217,C209:L209,0))+1,C199:L199,0)) -> 1289439.513 | P217: =IF(AND(L209<0,L199<=H214),L209,IF(AND(K209<0,K199<=H214),K209,IF(AND(J209<0,J199<=H214),J209,IF(AND(I209<0,I199<=H214),I209,IF(AND(H209<0,H199<=H214),H209,IF(AND(G209<0,G199<=H214),G209,IF(AND(F209<0,F199<=H214),F209,IF(AND(E209<0,E199<=H214),E209,IF(AND(D209<0,D199<=H214),D209,IF(AND(C209<0,C199<=H214),C209)))))))))) -> -5534743.369
B218: DSCR | C218: =(D200-D201)/(D203) -> 1.746988748
B221: Factures simulées
B224: Durée de vie du projet ou d'un prêt | F224: 7 | G224: ans
B225: Investissement total projet | F225: =SUM('investissement réel'!E4:E24)-10000000 -> 31375068 | G225: FCFA
B226: Intérêts théoriques | F226: 13765297.78 | G226: FCFA
B227: Investissement optimisé aux machines | F227: 17486306 | G227: FCFA
B228: Taux de remboursement (intérêts) | F228: =H193 -> 13881293.05 | G228: FCFA
B229: Amortissements | F229: =G150*F224 -> 9207466.733 | G229: FCFA
B231: Energie nécessaire par jour | F231: =F100 -> 40.074 | G231: KWh
B232: Energie nécessaire durée projet | F232: =F231*365*F224 -> 102389.07 | G232: KWh
B233: Energie nécessaire mouture (1kg) | F233: =((H17*Q17)/E17)*1.5 -> 0.0196812 | G233: KWh
B234: Energie nécessaire décorticage (1kg) | F234: =((H19*Q19)/E19)*1.5 -> 0.0308 | G234: KWh
B235: Energie nécessaire tamisage (1kg) | F235: =((H21*Q21)/E21)*1.5 -> 0.000525 | G235: KWh
B237: Temps total utilisation des machines possible/mois | F237: =(N17+N19+N21)*30 -> 420 | G237: heures
B238: Temps nécessaire mouture (1kg) | F238: =3600/250 -> 14.4 | G238: Sec
B239: Temps nécessaire décorticage (1kg) | F239: =3600/150 -> 24 | G239: Sec
B240: Temps nécessaire tamisage (1kg) | F240: =3600/800 -> 4.5 | G240: Sec
B242: Prix moyen du KWh sans amortissement | F242: =SUM(F227:F228)/F232 -> 306.3569095 | G242: FCFA
B243: Prix moyen du KWh avec amortissement | F243: =SUM(F227:F229)/F232 -> 396.2831754 | G243: FCFA
... 30 more rows

Sheet investissement réel
A3: Désignation | B3: Quantité | C3: Prix unitaire TTC | D3: Durée de vie (an) | E3: Montant Total TTC | F3: Amortissement annuel
A4: Moulin à grains | B4: 1 | C4: 1000000 | D4: 15 | E4: =B4*C4 -> 1000000 | F4: =E4/D4 -> 66666.66667
A5: Congélateur 360L | B5: 1 | C5: 400000 | D5: 7 | E5: =B5*C5 -> 400000 | F5: =E5/D5 -> 57142.85714
A6: Banc de recharge de smartphone | B6: 1 | C6: 20000 | D6: 10 | E6: 20000 | F6: =E6/D6 -> 2000
A7: Décortiqueuse électrique | B7: 1 | C7: 1000000 | D7: 15 | E7: 1000000 | F7: 66666.66667
A8: Vibro-tamiseur | B8: 1 | C8: 1300000 | D8: 15 | E8: =B8*C8 -> 1300000 | F8: 86666.66667
A9: Éclairage | B9: 3 | C9: 1500 | D9: 2 | E9: 4500 | F9: 2250
A10: Modules PV (375 Wc) | B10: 54 | C10: 78148.14815 | D10: 20 | E10: =B10*C10 -> 4220000 | F10: 211000
A11: Onduleur reseau 20 KW | B11: 1 | C11: 1870329 | D11: 10 | E11: 1870329 | F11: 187032.9
A12: Batteries OPZS 1220 (Ah) | B12: 48 | C12: 194400.625 | D12: 7 | E12: 9331230 | F12: 1333032.857
A13: Convertisseur chargeur victron 8KVA | B13: 3 | C13: 1660376 | D13: 10 | E13: =B13*C13 -> 4981128 | F13: 498112.8
A14: Coffret DC | B14: 1 | C14: 275563 | D14: 15 | E14: 275563 | F14: 18370.86667
A15: Coffret AC | B15: 1 | C15: 1049763 | D15: 15 | E15: 1049763 | F15: 69984.2
A16: Câbles et accessoires | B16: 1 | C16: 583632 | D16: 20 | E16: 583632 | F16: 29181.6
A17: Ensemble mise à la terre et accessoires | B17: 1 | C17: 161755 | D17: 10 | E17: 161755 | F17: 16175.5
A18: Coffret pour batteries | B18: 1 | C18: 437401 | D18: 7 | E18: 437401 | F18: 62485.85714
A19: Batiment | B19: 1 | C19: 10000000 | D19: 30 | E19: 10000000 | F19: 333333.3333
A20: Local batteries | B20: 1 | C20: 1149167 | D20: 30 | E20: 1149167 | F20: 38305.56667
A21: Installation | B21: 1 | C21: 1370600 | D21: 30 | E21: 1370600 | F21: 45686.66667
A22: Support aluminium | B22: 14 | C22: 82500 | D22: 20 | E22: =B22*C22 -> 1155000 | F22: =IFERROR(E22/D22,0) -> 57750
A23: Démarreur/variateur | B23: 1 | C23: 925000 | D23: 15 | E23: 925000 | F23: 61666.66667
A24: Parafoudre | B24: 1 | C24: 140000 | D24: 15 | E24: 140000 | F24: 9333.333333
A25: TOTAL (F CFA) | E25: =SUM(E4:E24) -> 41375068 | F25: 2737297.619

Sheet Remboursement Mensualités (hidden)
A1: Remboursement de prêt
A2: Taux annuel | B2: ='Table rentabilité optimisé'!D189 -> 0.15
A3: Capital emprunté | B3: ='Table rentabilité optimisé'!D188 -> 24064000
A4: Durée du prêt (en année) | B4: ='Table rentabilité optimisé'!D190 -> 7 | C4: =B4*12 -> 84
A5: Mensualité à régler | B5: =-PMT((1+B2)^(1/12)-1,B4*12,B3) -> 451729.6792 | C5: Formule mensualité | D5: =-VPM((1+B2)^(1/12)-1;B4*12;B3)
A7: Décomposition de la mensualité
A8: Remboursement du principal | B8: =-PPMT((1+B2)^(1/12)-1,1,B4*12,B3) -> 169821.9184 | C8: Formule principal | D8: =-PRINCPER((1+B2)^(1/12)-1;1;B4*12;B3)
A9: Remboursement des interêts | B9: =-IPMT((1+B2)^(1/12)-1,1,B4*12,B3) -> 281907.7608 | C9: Formule intérêt | D9: =-INTPER((1+B2)^(1/12)-1;1;B4*12;B3)
A12: Dans les formules ci-dessous Taux de période = TP = (1+$B$2)^(1/12)-1
A13: Périodes | B13: Mensualité | C13: Capital | D13: Intérêts | E13: Reste (ou résiduel) | F13: Années
A14: =IF(B4<>0,1,"-") -> 1 | B14: =IF(A14<>"-",C14+D14,"") -> 451729.6792 | C14: =IF(A14<>"-",-PPMT((1+$B$2)^(1/12)-1,A14,$B$4*12,$B$3),"") -> 169821.9184 | D14: =IF(A14<>"-",-IPMT((1+$B$2)^(1/12)-1,A14,$B$4*12,$B$3),"") -> 281907.7608 | E14: =IF(A14<>"-",$B$3+CUMPRINC((1+$B$2)^(1/12)-1,$B$4*12,$B$3,1,A14,0),"") -> 23894178.08 | F14: =IF(A14<>"-",1,"") -> 1 | G14: =IF(A14<>"-",1,"") -> 1
A15: =IF(AND($B$4<>0,A14<$C$4),A14+1,"-") -> 2 | B15: =IF(A15<>"-",C15+D15,"") -> 451729.6792 | C15: =IF(A15<>"-",-PPMT((1+$B$2)^(1/12)-1,A15,$B$4*12,$B$3),"") -> 171811.3681 | D15: =IF(A15<>"-",-IPMT((1+$B$2)^(1/12)-1,A15,$B$4*12,$B$3),"") -> 279918.3111 | E15: =IF(A15<>"-",$B$3+CUMPRINC((1+$B$2)^(1/12)-1,$B$4*12,$B$3,1,A15,0),"") -> 23722366.71 | F15: =IF(A15<>"-",IF(G14<G15,F14,F14+1),"") -> 1 | G15: =IF(A15="-","",IF(G14<12,G14+1,1)) -> 2
A16: =IF(AND($B$4<>0,A15<$C$4),A15+1,"-") -> 3 | B16: 451729.6792 | C16: 173824.124 | D16: 277905.5552 | E16: 23548542.59 | F16: =IF(A16<>"-",IF(G15<G16,F15,F15+1),"") -> 1 | G16: =IF(A16="-","",IF(G15<12,G15+1,1)) -> 3
A17: 4 | B17: 451729.6792 | C17: 175860.4592 | D17: 275869.22 | E17: 23372682.13 | F17: 1 | G17: 4
A18: 5 | B18: 451729.6792 | C18: 177920.6499 | D18: 273809.0293 | E18: 23194761.48 | F18: 1 | G18: 5
A19: 6 | B19: 451729.6792 | C19: 180004.9755 | D19: 271724.7037 | E19: 23014756.5 | F19: 1 | G19: 6
A20: 7 | B20: 451729.6792 | C20: 182113.7188 | D20: 269615.9604 | E20: 22832642.79 | F20: 1 | G20: 7
A21: 8 | B21: 451729.6792 | C21: 184247.1659 | D21: 267482.5133 | E21: 22648395.62 | F21: 1 | G21: 8
A22: 9 | B22: 451729.6792 | C22: 186405.6061 | D22: 265324.0731 | E22: 22461990.01 | F22: 1 | G22: 9
A23: 10 | B23: 451729.6792 | C23: 188589.3323 | D23: 263140.3469 | E23: 22273400.68 | F23: 1 | G23: 10
A24: 11 | B24: 451729.6792 | C24: 190798.6407 | D24: 260931.0385 | E24: 22082602.04 | F24: 1 | G24: 11
A25: 12 | B25: 451729.6792 | C25: 193033.8309 | D25: 258695.8483 | E25: 21889568.21 | F25: 1 | G25: 12
A26: 13 | B26: 451729.6792 | C26: 195295.2062 | D26: 256434.473 | E26: 21694273 | F26: 2 | G26: 1
A27: 14 | B27: 451729.6792 | C27: 197583.0733 | D27: 254146.6059 | E27: 21496689.93 | F27: 2 | G27: 2
A28: 15 | B28: 451729.6792 | C28: 199897.7426 | D28: 251831.9366 | E28: 21296792.19 | F28: 2 | G28: 3
A29: 16 | B29: 451729.6792 | C29: 202239.5281 | D29: 249490.1511 | E29: 21094552.66 | F29: 2 | G29: 4
A30: 17 | B30: 451729.6792 | C30: 204608.7473 | D30: 247120.9319 | E30: 20889943.91 | F30: 2 | G30: 5
A31: 18 | B31: 451729.6792 | C31: 207005.7218 | D31: 244723.9574 | E31: 20682938.19 | F31: 2 | G31: 6
A32: 19 | B32: 451729.6792 | C32: 209430.7766 | D32: 242298.9026 | E32: 20473507.41 | F32: 2 | G32: 7
A33: 20 | B33: 451729.6792 | C33: 211884.2408 | D33: 239845.4384 | E33: 20261623.17 | F33: 2 | G33: 8
A34: 21 | B34: 451729.6792 | C34: 214366.4471 | D34: 237363.2321 | E34: 20047256.73 | F34: 2 | G34: 9
A35: 22 | B35: 451729.6792 | C35: 216877.7322 | D35: 234851.947 | E35: 19830378.99 | F35: 2 | G35: 10
A36: 23 | B36: 451729.6792 | C36: 219418.4368 | D36: 232311.2424 | E36: 19610960.56 | F36: 2 | G36: 11
A37: 24 | B37: 451729.6792 | C37: 221988.9056 | D37: 229740.7736 | E37: 19388971.65 | F37: 2 | G37: 12
A38: 25 | B38: 451729.6792 | C38: 224589.4871 | D38: 227140.1921 | E38: 19164382.16 | F38: 3 | G38: 1
A39: 26 | B39: 451729.6792 | C39: 227220.5343 | D39: 224509.1449 | E39: 18937161.63 | F39: 3 | G39: 2
A40: 27 | B40: 451729.6792 | C40: 229882.404 | D40: 221847.2752 | E40: 18707279.23 | F40: 3 | G40: 3
A41: 28 | B41: 451729.6792 | C41: 232575.4573 | D41: 219154.2219 | E41: 18474703.77 | F41: 3 | G41: 4
A42: 29 | B42: 451729.6792 | C42: 235300.0594 | D42: 216429.6198 | E42: 18239403.71 | F42: 3 | G42: 5
A43: 30 | B43: 451729.6792 | C43: 238056.5801 | D43: 213673.0991 | E43: 18001347.13 | F43: 3 | G43: 6
A44: 31 | B44: 451729.6792 | C44: 240845.3931 | D44: 210884.2861 | E44: 17760501.74 | F44: 3 | G44: 7
A45: 32 | B45: 451729.6792 | C45: 243666.8769 | D45: 208062.8023 | E45: 17516834.86 | F45: 3 | G45: 8
A46: 33 | B46: 451729.6792 | C46: 246521.4141 | D46: 205208.2651 | E46: 17270313.45 | F46: 3 | G46: 9
A47: 34 | B47: 451729.6792 | C47: 249409.392 | D47: 202320.2872 | E47: 17020904.05 | F47: 3 | G47: 10
A48: 35 | B48: 451729.6792 | C48: 252331.2023 | D48: 199398.4769 | E48: 16768572.85 | F48: 3 | G48: 11
A49: 36 | B49: 451729.6792 | C49: 255287.2414 | D49: 196442.4378 | E49: 16513285.61 | F49: 3 | G49: 12
A50: 37 | B50: 451729.6792 | C50: 258277.9102 | D50: 193451.769 | E50: 16255007.7 | F50: 4 | G50: 1
A51: 38 | B51: 451729.6792 | C51: 261303.6145 | D51: 190426.0647 | E51: 15993704.08 | F51: 4 | G51: 2
A52: 39 | B52: 451729.6792 | C52: 264364.7646 | D52: 187364.9146 | E52: 15729339.32 | F52: 4 | G52: 3
A53: 40 | B53: 451729.6792 | C53: 267461.7759 | D53: 184267.9033 | E53: 15461877.54 | F53: 4 | G53: 4
A54: 41 | B54: 451729.6792 | C54: 270595.0683 | D54: 181134.6109 | E54: 15191282.48 | F54: 4 | G54: 5
A55: 42 | B55: 451729.6792 | C55: 273765.0671 | D55: 177964.6121 | E55: 14917517.41 | F55: 4 | G55: 6
A56: 43 | B56: 451729.6792 | C56: 276972.2021 | D56: 174757.4771 | E56: 14640545.21 | F56: 4 | G56: 7
A57: 44 | B57: 451729.6792 | C57: 280216.9084 | D57: 171512.7708 | E57: 14360328.3 | F57: 4 | G57: 8
A58: 45 | B58: 451729.6792 | C58: 283499.6262 | D58: 168230.053 | E58: 14076828.67 | F58: 4 | G58: 9
A59: 46 | B59: 451729.6792 | C59: 286820.8008 | D59: 164908.8784 | E59: 13790007.87 | F59: 4 | G59: 10
A60: 47 | B60: 451729.6792 | C60: 290180.8827 | D60: 161548.7965 | E60: 13499826.99 | F60: 4 | G60: 11
A61: 48 | B61: 451729.6792 | C61: 293580.3276 | D61: 158149.3516 | E61: 13206246.66 | F61: 4 | G61: 12
A62: 49 | B62: 451729.6792 | C62: 297019.5967 | D62: 154710.0825 | E62: 12909227.06 | F62: 5 | G62: 1
A63: 50 | B63: 451729.6792 | C63: 300499.1566 | D63: 151230.5226 | E63: 12608727.91 | F63: 5 | G63: 2
A64: 51 | B64: 451729.6792 | C64: 304019.4793 | D64: 147710.1999 | E64: 12304708.43 | F64: 5 | G64: 3
A65: 52 | B65: 451729.6792 | C65: 307581.0422 | D65: 144148.637 | E65: 11997127.39 | F65: 5 | G65: 4
A66: 53 | B66: 451729.6792 | C66: 311184.3286 | D66: 140545.3506 | E66: 11685943.06 | F66: 5 | G66: 5
A67: 54 | B67: 451729.6792 | C67: 314829.8272 | D67: 136899.852 | E67: 11371113.23 | F67: 5 | G67: 6
A68: 55 | B68: 451729.6792 | C68: 318518.0324 | D68: 133211.6468 | E68: 11052595.2 | F68: 5 | G68: 7
A69: 56 | B69: 451729.6792 | C69: 322249.4447 | D69: 129480.2345 | E69: 10730345.75 | F69: 5 | G69: 8
A70: 57 | B70: 451729.6792 | C70: 326024.5702 | D70: 125705.109 | E70: 10404321.18 | F70: 5 | G70: 9
A71: 58 | B71: 451729.6792 | C71: 329843.9209 | D71: 121885.7583 | E71: 10074477.26 | F71: 5 | G71: 10
A72: 59 | B72: 451729.6792 | C72: 333708.0151 | D72: 118021.6641 | E72: 9740769.247 | F72: 5 | G72: 11
A73: 60 | B73: 451729.6792 | C73: 337617.3767 | D73: 114112.3025 | E73: 9403151.87 | F73: 5 | G73: 12
A74: 61 | B74: 451729.6792 | C74: 341572.5363 | D74: 110157.1429 | E74: 9061579.334 | F74: 6 | G74: 1
A75: 62 | B75: 451729.6792 | C75: 345574.0301 | D75: 106155.6491 | E75: 8716005.304 | F75: 6 | G75: 2
A76: 63 | B76: 451729.6792 | C76: 349622.4012 | D76: 102107.278 | E76: 8366382.903 | F76: 6 | G76: 3
A77: 64 | B77: 451729.6792 | C77: 353718.1986 | D77: 98011.48062 | E77: 8012664.704 | F77: 6 | G77: 4
A78: 65 | B78: 451729.6792 | C78: 357861.9779 | D78: 93867.70131 | E78: 7654802.726 | F78: 6 | G78: 5
A79: 66 | B79: =IF(A79<>"-",C79+D79,"") -> 451729.6792 | C79: =IF(A79<>"-",-PPMT((1+$B$2)^(1/12)-1,A79,$B$4*12,$B$3),"") -> 362054.3012 | D79: =IF(A79<>"-",-IPMT((1+$B$2)^(1/12)-1,A79,$B$4*12,$B$3),"") -> 89675.37797 | E79: =IF(A79<>"-",$B$3+CUMPRINC((1+$B$2)^(1/12)-1,$B$4*12,$B$3,1,A79,0),"") -> 7292748.425 | F79: 6 | G79: 6
A80: =IF(AND($B$4<>0,A79<$C$4),A79+1,"-") -> 67 | B80: 451729.6792 | C80: 366295.7373 | D80: 85433.94192 | E80: 6926452.688 | F80: =IF(A80<>"-",IF(G79<G80,F79,F79+1),"") -> 6 | G80: =IF(A80="-","",IF(G79<12,G79+1,1)) -> 7
A81: 68 | B81: 451729.6792 | C81: 370586.8614 | D81: 81142.81778 | E81: 6555865.826 | F81: 6 | G81: 8
A82: 69 | B82: 451729.6792 | C82: 374928.2557 | D82: 76801.42349 | E82: 6180937.57 | F82: 6 | G82: 9
A83: 70 | B83: 451729.6792 | C83: 379320.5091 | D83: 72409.17012 | E83: 5801617.061 | F83: 6 | G83: 10
A84: 71 | B84: 451729.6792 | C84: 383764.2173 | D84: 67965.46187 | E84: 5417852.844 | F84: 6 | G84: 11
A85: 72 | B85: 451729.6792 | C85: 388259.9833 | D85: 63469.69595 | E85: 5029592.861 | F85: 6 | G85: 12
A86: 73 | B86: 451729.6792 | C86: 392808.4167 | D86: 58921.26251 | E86: 4636784.444 | F86: 7 | G86: 1
A87: 74 | B87: 451729.6792 | C87: 397410.1347 | D87: 54319.54454 | E87: 4239374.309 | F87: 7 | G87: 2
A88: 75 | B88: 451729.6792 | C88: 402065.7614 | D88: 49663.91783 | E88: 3837308.548 | F88: 7 | G88: 3
A89: 76 | B89: 451729.6792 | C89: 406775.9284 | D89: 44953.75084 | E89: 3430532.62 | F89: 7 | G89: 4
A90: 77 | B90: 451729.6792 | C90: 411541.2746 | D90: 40188.40463 | E90: 3018991.345 | F90: 7 | G90: 5
A91: 78 | B91: 451729.6792 | C91: 416362.4464 | D91: 35367.23279 | E91: 2602628.899 | F91: 7 | G91: 6
A92: 79 | B92: 451729.6792 | C92: 421240.0979 | D92: 30489.58132 | E92: 2181388.801 | F92: 7 | G92: 7
A93: 80 | B93: 451729.6792 | C93: 426174.8906 | D93: 25554.78857 | E93: 1755213.91 | F93: 7 | G93: 8
A94: 81 | B94: 451729.6792 | C94: 431167.4941 | D94: 20562.18513 | E94: 1324046.416 | F94: 7 | G94: 9
A95: 82 | B95: 451729.6792 | C95: 436218.5854 | D95: 15511.09376 | E95: 887827.8307 | F95: 7 | G95: 10
A96: 83 | B96: 451729.6792 | C96: 441328.8499 | D96: 10400.82928 | E96: 446498.9807 | F96: 7 | G96: 11
A97: 84 | B97: 451729.6792 | C97: 446498.9807 | D97: 5230.698464 | E97: -3.725290298e-09 | F97: 7 | G97: 12
A98: -
A99: -
A100: -
A101: -
A102: -
A103: -
A104: -
A105: -
A106: -
A107: -
A108: -
A109: -
A110: -
A111: -
A112: -
A113: -
A114: -
A115: -
A116: -
A117: -
A118: -
A119: -
A120: -
A121: -
A122: -
A123: -
A124: -
A125: -
A126: -
A127: -
A128: -
A129: -
A130: -
A131: -
A132: -
A133: -
